[Event "November 21 Early 2023"]
[Site "https://www.chess.com"]
[Date "2023.11.21"]
[Round "6"]
[White "Martinez Alcantara, Jose Eduardo"]
[Black "Kuznetsova, Olga"]
[Result "1-0"]
[Board "50"]
[TimeControl "180+1"]
[WhiteFideId "3805662"]
[BlackFideId "4191323"]
[WhiteElo "2703"]
[BlackElo "2134"]
[WhiteTeam "PER"]
[BlackTeam "RUS"]
[WhiteClock "0:01:44"]
[BlackClock "0:01:08"]

1. e4 {[%clk 0:03:00]}  e6 {[%clk 0:02:51]} 2. d4 {[%clk 0:03:01]}  d5 {[%clk 0:02:51]} 3. exd5 {[%clk 0:03:01]}  exd5 {[%clk 0:02:50]} 4. Nf3 {[%clk 0:03:02]}  Nf6 {[%clk 0:02:50]} 5. Bd3 {[%clk 0:03:03]}  Bd6 {[%clk 0:02:50]} 6. O-O {[%clk 0:03:03]}  O-O {[%clk 0:02:50]} 7. h3 {[%clk 0:03:04]}  h6 {[%clk 0:02:50]} 8. c4 {[%clk 0:03:02]}  c6 {[%clk 0:02:49]} 9. Nc3 {[%clk 0:03:02]}  Be6 {[%clk 0:02:48]} 10. cxd5 {[%clk 0:03:03]}  Nxd5 {[%clk 0:02:48]} 11. Re1 {[%clk 0:03:03]}  Nxc3 {[%clk 0:02:44]} 12. bxc3 {[%clk 0:03:04]}  Qf6 {[%clk 0:02:44]} 13. Nd2 {[%clk 0:02:53]}  Bc7 {[%clk 0:02:24]} 14. Ne4 {[%clk 0:02:53]}  Qh4 {[%clk 0:02:24]} 15. Qf3 {[%clk 0:02:37]}  Nd7 {[%clk 0:02:16]} 16. Rb1 {[%clk 0:02:21]}  Nb6 {[%clk 0:02:07]} 17. Ba3 {[%clk 0:02:04]}  Rfe8 {[%clk 0:02:05]} 18. Bd6 {[%clk 0:02:00]}  Bxd6 {[%clk 0:01:47]} 19. Nxd6 {[%clk 0:02:01]}  Bd5 {[%clk 0:01:47]} 20. Be4 {[%clk 0:01:45]}  Bxe4 {[%clk 0:01:41]} 21. Qxf7+ {[%clk 0:01:43]}  Kh7 {[%clk 0:01:20]} 22. Nxe8 {[%clk 0:01:44]}  Rxe8 {[%clk 0:01:12]} 23. Qxe8 {[%clk 0:01:43]}  Bxb1 {[%clk 0:01:12]} 24. Rxb1 {[%clk 0:01:44]}  Qe4 {[%clk 0:01:08]} 25. Qxe4+ {[%clk 0:01:44]} 1-0

[Event "November 21 Early 2023"]
[Site "https://www.chess.com"]
[Date "2023.11.21"]
[Round "6"]
[White "Demchenko, Anton"]
[Black "Skatchkov, Valery"]
[Result "0-1"]
[Board "51"]
[TimeControl "180+1"]
[WhiteFideId "4160258"]
[BlackFideId "24195812"]
[WhiteElo "2545"]
[BlackElo "2320"]
[WhiteTeam "SLO"]
[BlackTeam "RUS"]
[WhiteClock "0:00:01"]
[BlackClock "0:00:05"]

1. e4 {[%clk 0:02:55]}  e5 {[%clk 0:03:00]} 2. Nf3 {[%clk 0:02:52]}  Nf6 {[%clk 0:02:59]} 3. Nxe5 {[%clk 0:02:52]}  d6 {[%clk 0:02:59]} 4. Nf3 {[%clk 0:02:53]}  Nxe4 {[%clk 0:03:00]} 5. Qe2 {[%clk 0:02:51]}  Qe7 {[%clk 0:02:59]} 6. d3 {[%clk 0:02:52]}  Nf6 {[%clk 0:03:00]} 7. Bg5 {[%clk 0:02:52]}  Qxe2+ {[%clk 0:02:59]} 8. Bxe2 {[%clk 0:02:53]}  Be7 {[%clk 0:03:00]} 9. Nc3 {[%clk 0:02:54]}  c6 {[%clk 0:03:01]} 10. O-O-O {[%clk 0:02:53]}  Na6 {[%clk 0:03:01]} 11. h3 {[%clk 0:02:52]}  Nc7 {[%clk 0:03:02]} 12. Rde1 {[%clk 0:02:51]}  Ne6 {[%clk 0:02:48]} 13. Bd2 {[%clk 0:02:51]}  a5 {[%clk 0:02:47]} 14. g4 {[%clk 0:02:48]}  b5 {[%clk 0:02:46]} 15. Bd1 {[%clk 0:02:46]}  b4 {[%clk 0:02:37]} 16. Ne2 {[%clk 0:02:39]}  Bb7 {[%clk 0:02:34]} 17. Rhg1 {[%clk 0:02:38]}  c5 {[%clk 0:01:22]} 18. Ng3 {[%clk 0:02:27]}  g6 {[%clk 0:01:18]} 19. Ng5 {[%clk 0:02:15]}  Bd5 {[%clk 0:00:28]} 20. c4 {[%clk 0:01:50]}  bxc3 {[%clk 0:00:28]} 21. Ba4+ {[%clk 0:01:50]}  Kf8 {[%clk 0:00:18]} 22. bxc3 {[%clk 0:01:50]}  Nxg5 {[%clk 0:00:12]} 23. Bxg5 {[%clk 0:01:50]}  h6 {[%clk 0:00:11]} 24. Bd2 {[%clk 0:01:45]}  Be6 {[%clk 0:00:11]} 25. c4 {[%clk 0:01:44]}  Nh7 {[%clk 0:00:09]} 26. Ne4 {[%clk 0:01:35]}  Ng5 {[%clk 0:00:05]} 27. Rg3 {[%clk 0:01:23]}  Nxe4 {[%clk 0:00:05]} 28. Rxe4 {[%clk 0:01:23]}  Bf6 {[%clk 0:00:05]} 29. Rf3 {[%clk 0:01:23]}  Kg7 {[%clk 0:00:06]} 30. Bc6 {[%clk 0:01:01]}  Rab8 {[%clk 0:00:05]} 31. Bd5 {[%clk 0:01:01]}  Bxd5 {[%clk 0:00:05]} 32. cxd5 {[%clk 0:01:02]}  g5 {[%clk 0:00:05]} 33. a4 {[%clk 0:00:48]}  Rb3 {[%clk 0:00:05]} 34. Bxa5 {[%clk 0:00:11]}  Rhb8 {[%clk 0:00:06]} 35. Kd1 {[%clk 0:00:12]}  Rb1+ {[%clk 0:00:06]} 36. Ke2 {[%clk 0:00:12]}  R8b2+ {[%clk 0:00:07]} 37. Ke3 {[%clk 0:00:09]}  Bd4+ {[%clk 0:00:03]} 38. Rxd4 {[%clk 0:00:10]}  cxd4+ {[%clk 0:00:04]} 39. Ke4 {[%clk 0:00:09]}  Ra2 {[%clk 0:00:04]} 40. Bc7 {[%clk 0:00:07]}  Re1+ {[%clk 0:00:03]} 41. Kxd4 {[%clk 0:00:05]}  Rxa4+ {[%clk 0:00:04]} 42. Kc3 {[%clk 0:00:03]}  Rc1+ {[%clk 0:00:05]} 43. Kb3 {[%clk 0:00:04]}  Ra6 {[%clk 0:00:05]} 44. Bd8 {[%clk 0:00:04]}  Rc8 {[%clk 0:00:04]} 45. Bf6+ {[%clk 0:00:04]}  Kh7 {[%clk 0:00:04]} 46. Bd4 {[%clk 0:00:02]}  Kg8 {[%clk 0:00:03]} 47. Re3 {[%clk 0:00:02]}  Ra5 {[%clk 0:00:04]} 48. Re4 {[%clk 0:00:02]}  Rb5+ {[%clk 0:00:04]} 49. Ka4 {[%clk 0:00:02]}  Rb7 {[%clk 0:00:04]} 50. Ba7 {[%clk 0:00:01]}  Ra8 {[%clk 0:00:05]} 51. Ka5 {[%clk 0:00:01]}  Raxa7# {[%clk 0:00:05]} 0-1

[Event "November 21 Early 2023"]
[Site "https://www.chess.com"]
[Date "2023.11.21"]
[Round "6"]
[White "AlmasRakhmatullaev"]
[Black "Thorfinnsson, Bjorn"]
[Result "0-1"]
[Board "55"]
[TimeControl "180+1"]
[BlackFideId "2300982"]
[WhiteElo "2854"]
[BlackElo "2381"]
[BlackTeam "ISL"]
[WhiteClock "0:00:00"]
[BlackClock "0:00:27"]

1. e4 {[%clk 0:03:00]}  e5 {[%clk 0:02:59]} 2. Nf3 {[%clk 0:03:00]}  Nc6 {[%clk 0:02:59]} 3. Bc4 {[%clk 0:03:01]}  Nf6 {[%clk 0:02:57]} 4. Ng5 {[%clk 0:03:01]}  d5 {[%clk 0:02:53]} 5. exd5 {[%clk 0:03:01]}  Na5 {[%clk 0:02:51]} 6. Bb5+ {[%clk 0:03:00]}  Bd7 {[%clk 0:02:51]} 7. Bxd7+ {[%clk 0:02:50]}  Qxd7 {[%clk 0:02:49]} 8. O-O {[%clk 0:02:50]}  Nxd5 {[%clk 0:02:43]} 9. Re1 {[%clk 0:02:47]}  Nc6 {[%clk 0:02:41]} 10. Nf3 {[%clk 0:02:41]}  O-O-O {[%clk 0:02:05]} 11. Nxe5 {[%clk 0:02:29]}  Nxe5 {[%clk 0:02:05]} 12. Rxe5 {[%clk 0:02:30]}  c6 {[%clk 0:01:57]} 13. d3 {[%clk 0:02:21]}  Bd6 {[%clk 0:01:56]} 14. Re1 {[%clk 0:02:17]}  Rhe8 {[%clk 0:01:54]} 15. Rf1 {[%clk 0:02:04]}  Qf5 {[%clk 0:01:47]} 16. Nd2 {[%clk 0:02:01]}  Nf4 {[%clk 0:01:41]} 17. Ne4 {[%clk 0:02:00]}  Bc7 {[%clk 0:01:09]} 18. Qf3 {[%clk 0:01:58]}  g5 {[%clk 0:00:57]} 19. Bxf4 {[%clk 0:01:52]}  gxf4 {[%clk 0:00:55]} 20. Kh1 {[%clk 0:01:43]}  Rg8 {[%clk 0:00:54]} 21. Rg1 {[%clk 0:01:38]}  Rg6 {[%clk 0:00:46]} 22. Rae1 {[%clk 0:01:31]}  Rdg8 {[%clk 0:00:44]} 23. d4 {[%clk 0:01:22]}  Rh6 {[%clk 0:00:41]} 24. c4 {[%clk 0:01:18]}  Rg4 {[%clk 0:00:39]} 25. h3 {[%clk 0:01:08]}  Rg3 {[%clk 0:00:27]} 26. Nxg3 {[%clk 0:00:00]}  Rxh3+ {[%clk 0:00:27]} 0-1

[Event "November 21 Early 2023"]
[Site "https://www.chess.com"]
[Date "2023.11.21"]
[Round "6"]
[White "Statham_l3"]
[Black "Narayanan, Srinath"]
[Result "1-0"]
[Board "57"]
[TimeControl "180+1"]
[BlackFideId "5018420"]
[WhiteElo "2567"]
[BlackElo "2442"]
[BlackTeam "IND"]
[WhiteClock "0:00:05"]
[BlackClock "0:00:02"]

1. e4 {[%clk 0:03:00]}  c5 {[%clk 0:02:59]} 2. Nf3 {[%clk 0:03:00]}  d6 {[%clk 0:03:00]} 3. d4 {[%clk 0:03:00]}  cxd4 {[%clk 0:03:01]} 4. Nxd4 {[%clk 0:03:01]}  Nf6 {[%clk 0:03:01]} 5. Nc3 {[%clk 0:03:01]}  Nc6 {[%clk 0:03:02]} 6. Be3 {[%clk 0:02:58]}  Ng4 {[%clk 0:03:01]} 7. Bb5 {[%clk 0:02:57]}  Nxe3 {[%clk 0:03:00]} 8. fxe3 {[%clk 0:02:56]}  Bd7 {[%clk 0:03:00]} 9. Bxc6 {[%clk 0:02:55]}  bxc6 {[%clk 0:03:01]} 10. O-O {[%clk 0:02:49]}  e6 {[%clk 0:02:49]} 11. e5 {[%clk 0:02:33]}  d5 {[%clk 0:02:26]} 12. Qf3 {[%clk 0:02:30]}  Qe7 {[%clk 0:02:25]} 13. b4 {[%clk 0:02:29]}  f6 {[%clk 0:02:16]} 14. b5 {[%clk 0:01:28]}  Rc8 {[%clk 0:01:07]} 15. exf6 {[%clk 0:01:09]}  gxf6 {[%clk 0:01:06]} 16. e4 {[%clk 0:00:50]}  cxb5 {[%clk 0:00:48]} 17. exd5 {[%clk 0:00:43]}  e5 {[%clk 0:00:36]} 18. Rae1 {[%clk 0:00:26]}  Rg8 {[%clk 0:00:27]} 19. Ne4 {[%clk 0:00:23]}  Bg7 {[%clk 0:00:21]} 20. Qh5+ {[%clk 0:00:18]}  Kd8 {[%clk 0:00:20]} 21. Nf5 {[%clk 0:00:07]}  Bxf5 {[%clk 0:00:19]} 22. Qxf5 {[%clk 0:00:08]}  Rxc2 {[%clk 0:00:19]} 23. d6 {[%clk 0:00:04]}  Qd7 {[%clk 0:00:18]} 24. Qf3 {[%clk 0:00:03]}  f5 {[%clk 0:00:16]} 25. Ng5 {[%clk 0:00:03]}  Bf6 {[%clk 0:00:14]} 26. h4 {[%clk 0:00:02]}  h6 {[%clk 0:00:13]} 27. Rc1 {[%clk 0:00:02]}  Rxc1 {[%clk 0:00:09]} 28. Rxc1 {[%clk 0:00:03]}  e4 {[%clk 0:00:10]} 29. Qb3 {[%clk 0:00:02]}  Rg7 {[%clk 0:00:06]} 30. Ne6+ {[%clk 0:00:02]}  Ke8 {[%clk 0:00:06]} 31. Rc7 {[%clk 0:00:02]}  Bd4+ {[%clk 0:00:05]} 32. Kf1 {[%clk 0:00:02]}  Qxd6 {[%clk 0:00:06]} 33. Nxg7+ {[%clk 0:00:02]}  Bxg7 {[%clk 0:00:05]} 34. Qg8+ {[%clk 0:00:03]}  Bf8 {[%clk 0:00:05]} 35. Rc8+ {[%clk 0:00:03]}  Kd7 {[%clk 0:00:04]} 36. Rxf8 {[%clk 0:00:03]}  Qd1+ {[%clk 0:00:04]} 37. Kf2 {[%clk 0:00:03]}  Qd2+ {[%clk 0:00:03]} 38. Kg3 {[%clk 0:00:03]}  Qe3+ {[%clk 0:00:04]} 39. Kh2 {[%clk 0:00:03]}  Qf4+ {[%clk 0:00:04]} 40. Qg3 {[%clk 0:00:02]}  Qd2 {[%clk 0:00:02]} 41. Rxf5 {[%clk 0:00:02]}  Ke6 {[%clk 0:00:03]} 42. Rh5 {[%clk 0:00:02]}  e3 {[%clk 0:00:02]} 43. Qg4+ {[%clk 0:00:03]}  Ke7 {[%clk 0:00:02]} 44. Qg7+ {[%clk 0:00:03]}  Ke6 {[%clk 0:00:02]} 45. Rxh6+ {[%clk 0:00:04]}  Kd5 {[%clk 0:00:02]} 46. Qg5+ {[%clk 0:00:04]}  Kc4 {[%clk 0:00:03]} 47. Rc6+ {[%clk 0:00:05]}  Kb4 {[%clk 0:00:04]} 48. Qc5+ {[%clk 0:00:05]}  Ka4 {[%clk 0:00:02]} 49. Ra6+ {[%clk 0:00:05]} 1-0

[Event "November 21 Early 2023"]
[Site "https://www.chess.com"]
[Date "2023.11.21"]
[Round "6"]
[White "Sonis, Francesco"]
[Black "Badelka, Olga"]
[Result "1-0"]
[Board "59"]
[TimeControl "180+1"]
[WhiteFideId "895733"]
[BlackFideId "13509926"]
[WhiteElo "2435"]
[BlackElo "2262"]
[WhiteTeam "ITA"]
[BlackTeam "FID"]
[WhiteClock "0:00:24"]
[BlackClock "0:00:00"]

1. e4 {[%clk 0:03:00]}  e5 {[%clk 0:02:59]} 2. Nf3 {[%clk 0:03:00]}  Nc6 {[%clk 0:02:59]} 3. Bb5 {[%clk 0:02:58]}  Nf6 {[%clk 0:02:59]} 4. d3 {[%clk 0:02:55]}  d6 {[%clk 0:02:58]} 5. c4 {[%clk 0:02:51]}  Be7 {[%clk 0:02:54]} 6. h3 {[%clk 0:02:49]}  O-O {[%clk 0:02:51]} 7. Nc3 {[%clk 0:02:49]}  Nd7 {[%clk 0:02:49]} 8. O-O {[%clk 0:02:49]}  a6 {[%clk 0:02:43]} 9. Bxc6 {[%clk 0:02:48]}  bxc6 {[%clk 0:02:43]} 10. Be3 {[%clk 0:02:48]}  f5 {[%clk 0:02:37]} 11. exf5 {[%clk 0:02:47]}  Rxf5 {[%clk 0:02:38]} 12. d4 {[%clk 0:02:43]}  Qf8 {[%clk 0:02:30]} 13. d5 {[%clk 0:02:27]}  c5 {[%clk 0:02:27]} 14. Nd2 {[%clk 0:02:26]}  Rb8 {[%clk 0:02:21]} 15. b3 {[%clk 0:02:24]}  Rf6 {[%clk 0:01:55]} 16. Nde4 {[%clk 0:02:20]}  Rg6 {[%clk 0:01:55]} 17. f4 {[%clk 0:02:20]}  exf4 {[%clk 0:01:52]} 18. Rxf4 {[%clk 0:02:20]}  Nf6 {[%clk 0:01:49]} 19. Qf3 {[%clk 0:02:17]}  Qe8 {[%clk 0:01:40]} 20. Rf1 {[%clk 0:02:13]}  Bd7 {[%clk 0:01:25]} 21. Bf2 {[%clk 0:01:57]}  Nxe4 {[%clk 0:01:14]} 22. Rxe4 {[%clk 0:01:58]}  Qf8 {[%clk 0:01:06]} 23. Rf4 {[%clk 0:01:53]}  Rf6 {[%clk 0:01:02]} 24. Bg3 {[%clk 0:01:42]}  Rxf4 {[%clk 0:01:01]} 25. Bxf4 {[%clk 0:01:43]}  Bf6 {[%clk 0:01:00]} 26. Ne4 {[%clk 0:01:43]}  Bd4+ {[%clk 0:00:59]} 27. Kh1 {[%clk 0:01:42]}  Re8 {[%clk 0:00:56]} 28. Ng3 {[%clk 0:01:34]}  h6 {[%clk 0:00:38]} 29. Qd3 {[%clk 0:01:30]}  Qe7 {[%clk 0:00:34]} 30. Qg6 {[%clk 0:01:19]}  Rf8 {[%clk 0:00:18]} 31. Kh2 {[%clk 0:01:12]}  Qf7 {[%clk 0:00:18]} 32. Qd3 {[%clk 0:01:06]}  Qe7 {[%clk 0:00:16]} 33. Rf3 {[%clk 0:01:03]}  g5 {[%clk 0:00:15]} 34. Bd2 {[%clk 0:00:52]}  Rxf3 {[%clk 0:00:14]} 35. Qxf3 {[%clk 0:00:53]}  Qe5 {[%clk 0:00:14]} 36. Qe4 {[%clk 0:00:49]}  Be8 {[%clk 0:00:06]} 37. Be1 {[%clk 0:00:36]}  h5 {[%clk 0:00:05]} 38. Qxe5 {[%clk 0:00:33]}  Bxe5 {[%clk 0:00:06]} 39. Kh1 {[%clk 0:00:31]}  Bg6 {[%clk 0:00:07]} 40. Ne2 {[%clk 0:00:29]}  h4 {[%clk 0:00:07]} 41. Bd2 {[%clk 0:00:28]}  Bf6 {[%clk 0:00:07]} 42. Ng1 {[%clk 0:00:28]}  Bb1 {[%clk 0:00:06]} 43. Ba5 {[%clk 0:00:27]}  Bxa2 {[%clk 0:00:05]} 44. Bxc7 {[%clk 0:00:27]}  Be7 {[%clk 0:00:06]} 45. Nf3 {[%clk 0:00:25]}  Bxb3 {[%clk 0:00:06]} 46. Nd2 {[%clk 0:00:25]}  Bc2 {[%clk 0:00:06]} 47. Kg1 {[%clk 0:00:25]}  Kf7 {[%clk 0:00:06]} 48. Kf2 {[%clk 0:00:26]}  Ke8 {[%clk 0:00:06]} 49. Ba5 {[%clk 0:00:25]}  Bf6 {[%clk 0:00:06]} 50. Kf3 {[%clk 0:00:25]}  Be5 {[%clk 0:00:04]} 51. Kg4 {[%clk 0:00:24]}  Bf4 {[%clk 0:00:05]} 52. Nf3 {[%clk 0:00:23]}  Bd3 {[%clk 0:00:04]} 53. Nxg5 {[%clk 0:00:21]}  Bxg5 {[%clk 0:00:04]} 54. Kxg5 {[%clk 0:00:22]}  Bxc4 {[%clk 0:00:04]} 55. Kxh4 {[%clk 0:00:22]}  Bxd5 {[%clk 0:00:05]} 56. g4 {[%clk 0:00:23]}  Kf7 {[%clk 0:00:05]} 57. Kg5 {[%clk 0:00:23]}  Be4 {[%clk 0:00:05]} 58. h4 {[%clk 0:00:24]}  d5 {[%clk 0:00:05]} 59. h5 {[%clk 0:00:24]}  d4 {[%clk 0:00:04]} 60. Bb6 {[%clk 0:00:24]}  d3 {[%clk 0:00:04]} 61. Ba5 {[%clk 0:00:24]}  c4 {[%clk 0:00:04]} 62. Kh6 {[%clk 0:00:24]}  Kg8 {[%clk 0:00:03]} 63. g5 {[%clk 0:00:25]}  Bf5 {[%clk 0:00:02]} 64. g6 {[%clk 0:00:24]}  Bg4 {[%clk 0:00:02]} 65. Kg5 {[%clk 0:00:25]}  Be2 {[%clk 0:00:02]} 66. h6 {[%clk 0:00:25]}  Bf3 {[%clk 0:00:02]} 67. Bb4 {[%clk 0:00:23]}  Be4 {[%clk 0:00:02]} 68. h7+ {[%clk 0:00:24]}  Kg7 {[%clk 0:00:00]} 69. Bc3+ {[%clk 0:00:24]} 1-0

[Event "November 21 Early 2023"]
[Site "https://www.chess.com"]
[Date "2023.11.21"]
[Round "6"]
[White "Llorente Zaro, Alfonso"]
[Black "Deng, Henry"]
[Result "1-0"]
[Board "61"]
[TimeControl "180+1"]
[WhiteFideId "2254131"]
[BlackFideId "30965454"]
[WhiteElo "2485"]
[BlackElo "2549"]
[WhiteTeam "ESP"]
[BlackTeam "USA"]
[WhiteClock "0:00:12"]
[BlackClock "0:00:15"]

1. g4 {[%clk 0:02:35]}  d5 {[%clk 0:02:54]} 2. Bg2 {[%clk 0:02:34]}  c6 {[%clk 0:02:34]} 3. h3 {[%clk 0:02:33]}  e5 {[%clk 0:02:30]} 4. d3 {[%clk 0:02:33]}  Nd7 {[%clk 0:02:30]} 5. Nc3 {[%clk 0:02:30]}  Bd6 {[%clk 0:02:28]} 6. Nf3 {[%clk 0:02:28]}  Ne7 {[%clk 0:02:29]} 7. e3 {[%clk 0:02:18]}  Ng6 {[%clk 0:02:23]} 8. Ne2 {[%clk 0:02:18]}  Qe7 {[%clk 0:02:14]} 9. Ng3 {[%clk 0:02:06]}  Nb6 {[%clk 0:02:12]} 10. Nf5 {[%clk 0:02:00]}  Bxf5 {[%clk 0:02:10]} 11. gxf5 {[%clk 0:02:01]}  Nh4 {[%clk 0:02:11]} 12. Nxh4 {[%clk 0:02:01]}  Qxh4 {[%clk 0:02:11]} 13. Qg4 {[%clk 0:02:01]}  Qf6 {[%clk 0:02:10]} 14. e4 {[%clk 0:01:55]}  h6 {[%clk 0:02:07]} 15. c3 {[%clk 0:01:53]}  O-O-O {[%clk 0:02:04]} 16. h4 {[%clk 0:01:47]}  Kb8 {[%clk 0:01:58]} 17. Bd2 {[%clk 0:01:36]}  g6 {[%clk 0:01:57]} 18. Bh3 {[%clk 0:01:32]}  dxe4 {[%clk 0:01:44]} 19. Qxe4 {[%clk 0:01:31]}  Nd7 {[%clk 0:01:39]} 20. fxg6 {[%clk 0:01:15]}  Nc5 {[%clk 0:01:37]} 21. Qf5 {[%clk 0:01:15]}  Qxg6 {[%clk 0:01:31]} 22. Ke2 {[%clk 0:01:10]}  Qxf5 {[%clk 0:01:09]} 23. Bxf5 {[%clk 0:01:09]}  Be7 {[%clk 0:01:10]} 24. Rag1 {[%clk 0:01:05]}  Bf6 {[%clk 0:01:10]} 25. Rg4 {[%clk 0:00:54]}  h5 {[%clk 0:01:07]} 26. Rg3 {[%clk 0:00:47]}  Rhg8 {[%clk 0:00:58]} 27. Rxg8 {[%clk 0:00:33]}  Rxg8 {[%clk 0:00:57]} 28. b4 {[%clk 0:00:33]}  Na4 {[%clk 0:00:50]} 29. Be4 {[%clk 0:00:22]}  Rg4 {[%clk 0:00:46]} 30. Bf3 {[%clk 0:00:22]}  Rxh4 {[%clk 0:00:46]} 31. Rxh4 {[%clk 0:00:23]}  Bxh4 {[%clk 0:00:47]} 32. Bxh5 {[%clk 0:00:23]}  Nb6 {[%clk 0:00:46]} 33. Bxf7 {[%clk 0:00:21]}  Kc7 {[%clk 0:00:46]} 34. Kf3 {[%clk 0:00:19]}  Nd7 {[%clk 0:00:42]} 35. Be3 {[%clk 0:00:18]}  a6 {[%clk 0:00:39]} 36. Ke4 {[%clk 0:00:18]}  Nf6+ {[%clk 0:00:35]} 37. Kf5 {[%clk 0:00:18]}  Nd7 {[%clk 0:00:32]} 38. Be6 {[%clk 0:00:18]}  Nf8 {[%clk 0:00:32]} 39. Kxe5 {[%clk 0:00:17]}  Be7 {[%clk 0:00:29]} 40. Kf5 {[%clk 0:00:16]}  b6 {[%clk 0:00:21]} 41. f3 {[%clk 0:00:14]}  c5 {[%clk 0:00:20]} 42. a3 {[%clk 0:00:13]}  cxb4 {[%clk 0:00:19]} 43. cxb4 {[%clk 0:00:13]}  a5 {[%clk 0:00:20]} 44. bxa5 {[%clk 0:00:14]}  bxa5 {[%clk 0:00:20]} 45. a4 {[%clk 0:00:14]}  Kd6 {[%clk 0:00:21]} 46. Bc4 {[%clk 0:00:13]}  Kc6 {[%clk 0:00:20]} 47. Bd2 {[%clk 0:00:13]}  Bd8 {[%clk 0:00:18]} 48. Bh6 {[%clk 0:00:11]}  Nd7 {[%clk 0:00:16]} 49. Bb5+ {[%clk 0:00:11]}  Kd6 {[%clk 0:00:17]} 50. Bxd7 {[%clk 0:00:11]}  Kxd7 {[%clk 0:00:17]} 51. Ke4 {[%clk 0:00:12]}  Ke6 {[%clk 0:00:17]} 52. Be3 {[%clk 0:00:12]}  Kd6 {[%clk 0:00:18]} 53. d4 {[%clk 0:00:12]}  Ke6 {[%clk 0:00:18]} 54. d5+ {[%clk 0:00:12]}  Kd7 {[%clk 0:00:18]} 55. Kd3 {[%clk 0:00:12]}  Be7 {[%clk 0:00:17]} 56. Kc4 {[%clk 0:00:12]}  Bb4 {[%clk 0:00:17]} 57. f4 {[%clk 0:00:12]}  Ke7 {[%clk 0:00:15]} 58. Bc5+ {[%clk 0:00:12]} 1-0

[Event "November 21 Early 2023"]
[Site "https://www.chess.com"]
[Date "2023.11.21"]
[Round "6"]
[White "Malyi, Viacheslav"]
[Black "Korchmar, Vasiliy"]
[Result "1-0"]
[Board "65"]
[TimeControl "180+1"]
[WhiteFideId "14123983"]
[BlackFideId "24131750"]
[WhiteElo "2291"]
[BlackElo "2372"]
[WhiteTeam "UKR"]
[BlackTeam "RUS"]
[WhiteClock "0:01:17"]
[BlackClock "0:00:04"]

1. d4 {[%clk 0:03:00]}  Nf6 {[%clk 0:02:59]} 2. Bg5 {[%clk 0:03:00]}  d5 {[%clk 0:02:58]} 3. Bxf6 {[%clk 0:03:00]}  gxf6 {[%clk 0:02:59]} 4. e3 {[%clk 0:03:01]}  e5 {[%clk 0:02:58]} 5. c4 {[%clk 0:03:01]}  Bb4+ {[%clk 0:02:39]} 6. Nc3 {[%clk 0:02:56]}  c5 {[%clk 0:02:34]} 7. Nf3 {[%clk 0:02:50]}  cxd4 {[%clk 0:02:27]} 8. exd4 {[%clk 0:02:50]}  e4 {[%clk 0:02:27]} 9. Nd2 {[%clk 0:02:49]}  Nc6 {[%clk 0:01:55]} 10. cxd5 {[%clk 0:02:32]}  Bxc3 {[%clk 0:01:49]} 11. bxc3 {[%clk 0:02:28]}  Qxd5 {[%clk 0:01:49]} 12. Bc4 {[%clk 0:02:17]}  Qg5 {[%clk 0:01:31]} 13. Qe2 {[%clk 0:02:02]}  f5 {[%clk 0:01:19]} 14. O-O {[%clk 0:02:01]}  O-O {[%clk 0:01:17]} 15. f3 {[%clk 0:01:54]}  e3 {[%clk 0:01:05]} 16. f4 {[%clk 0:01:52]}  Qe7 {[%clk 0:01:05]} 17. Nf3 {[%clk 0:01:50]}  Re8 {[%clk 0:00:47]} 18. Ne5 {[%clk 0:01:49]}  Be6 {[%clk 0:00:39]} 19. Rf3 {[%clk 0:01:45]}  Nxe5 {[%clk 0:00:14]} 20. fxe5 {[%clk 0:01:40]}  Bxc4 {[%clk 0:00:13]} 21. Qxc4 {[%clk 0:01:41]}  Rac8 {[%clk 0:00:10]} 22. Qd3 {[%clk 0:01:40]}  f4 {[%clk 0:00:08]} 23. Rxf4 {[%clk 0:01:36]}  Qa3 {[%clk 0:00:08]} 24. Qf5 {[%clk 0:01:19]}  Qxc3 {[%clk 0:00:03]} 25. Qxf7+ {[%clk 0:01:17]}  Kh8 {[%clk 0:00:03]} 26. Qf6+ {[%clk 0:01:17]}  Kg8 {[%clk 0:00:04]} 27. Rg4# {[%clk 0:01:17]} 1-0

[Event "November 21 Early 2023"]
[Site "https://www.chess.com"]
[Date "2023.11.21"]
[Round "6"]
[White "brm72"]
[Black "Nazari, Arad"]
[Result "1-0"]
[Board "66"]
[TimeControl "180+1"]
[BlackFideId "12577324"]
[WhiteElo "2537"]
[BlackElo "2100"]
[BlackTeam "IRI"]
[WhiteClock "0:00:20"]
[BlackClock "0:00:01"]

1. e4 {[%clk 0:03:00]}  c5 {[%clk 0:02:59]} 2. Nf3 {[%clk 0:03:01]}  d6 {[%clk 0:03:00]} 3. d4 {[%clk 0:03:01]}  cxd4 {[%clk 0:03:01]} 4. Nxd4 {[%clk 0:03:02]}  Nf6 {[%clk 0:03:02]} 5. Nc3 {[%clk 0:03:03]}  a6 {[%clk 0:03:03]} 6. Be2 {[%clk 0:02:59]}  e5 {[%clk 0:03:03]} 7. Nb3 {[%clk 0:02:59]}  Be7 {[%clk 0:03:03]} 8. O-O {[%clk 0:03:00]}  O-O {[%clk 0:03:04]} 9. Re1 {[%clk 0:03:01]}  Nc6 {[%clk 0:03:03]} 10. Bf3 {[%clk 0:03:01]}  b5 {[%clk 0:03:04]} 11. a4 {[%clk 0:03:00]}  b4 {[%clk 0:03:01]} 12. Nd5 {[%clk 0:03:00]}  Nxd5 {[%clk 0:03:02]} 13. exd5 {[%clk 0:03:01]}  Na5 {[%clk 0:03:02]} 14. Nxa5 {[%clk 0:02:29]}  Qxa5 {[%clk 0:03:03]} 15. b3 {[%clk 0:02:08]}  f5 {[%clk 0:02:55]} 16. Bb2 {[%clk 0:02:05]}  Bf6 {[%clk 0:02:49]} 17. Be2 {[%clk 0:01:57]}  Qc5 {[%clk 0:02:24]} 18. Bc4 {[%clk 0:01:53]}  a5 {[%clk 0:02:21]} 19. Qe2 {[%clk 0:01:52]}  Qb6 {[%clk 0:02:11]} 20. c3 {[%clk 0:01:30]}  bxc3 {[%clk 0:02:09]} 21. Bxc3 {[%clk 0:01:31]}  Ba6 {[%clk 0:02:10]} 22. Bxa6 {[%clk 0:01:24]}  Rxa6 {[%clk 0:02:10]} 23. b4 {[%clk 0:01:24]}  axb4 {[%clk 0:02:07]} 24. Bxb4 {[%clk 0:01:21]}  Rfa8 {[%clk 0:02:07]} 25. Rab1 {[%clk 0:01:07]}  Rxa4 {[%clk 0:02:04]} 26. Bd2 {[%clk 0:01:02]}  Qc5 {[%clk 0:01:48]} 27. Rb5 {[%clk 0:00:53]}  Qc2 {[%clk 0:01:43]} 28. h3 {[%clk 0:00:42]}  Ra2 {[%clk 0:01:27]} 29. Reb1 {[%clk 0:00:41]}  g6 {[%clk 0:00:31]} 30. Rb8+ {[%clk 0:00:34]}  Rxb8 {[%clk 0:00:31]} 31. Rxb8+ {[%clk 0:00:35]}  Kf7 {[%clk 0:00:32]} 32. Qb5 {[%clk 0:00:31]}  g5 {[%clk 0:00:07]} 33. Qe8+ {[%clk 0:00:29]}  Kg7 {[%clk 0:00:07]} 34. Rb7+ {[%clk 0:00:23]}  Kh6 {[%clk 0:00:05]} 35. Qf8+ {[%clk 0:00:21]}  Kh5 {[%clk 0:00:02]} 36. Rxh7+ {[%clk 0:00:21]}  Kg6 {[%clk 0:00:01]} 37. Qf7# {[%clk 0:00:20]} 1-0